Workbook

Sheet ORÇAMENTO
J2: TODOS OS VALORES ESTÃO NA UNIDADE MONETÁRIA REAL
B3: Nível | C3: PUXAR AQUI | J3: ITEM | K3: SERVIÇO | L3: UN | M3: QUANT. | N3: VALOR (S/ BDI) | O3: BDI | P3: VALOR (C/ BDI) | Q3: VALOR TOTAL | R3: CÓDIGO | S3: FONTE | W3: CLASSIFICAÇÃO | X3: % SIMPLES | Y3: % ACUMULADA | Z3: ORDEM CLASSIFICAÇÃO | AA3: ORDEM PORCENTAGEM | AB3: ORDEM ACUMULADO
B4: 1 | D4: 1 | E4: 0 | F4: 0 | G4: 242.61 | J4: 1 | K4: CANTEIRO DE OBRA | P4: ∑ | Q4: 242.61 | Y4: 0 | AB4: 0
B5: 2 | D5: 1 | E5: 1 | F5: 0 | J5: 1.1 | K5: Placa de Obra em Lona com quadro de madeira | L5: M2 | M5: 2.88 | N5: 70 | O5: 0.2034 | P5: 84.24 | Q5: 242.61 | R5: MED250 | S5: MERCADO | W5: 51 | X5: 0.001312933518 | Y5: 0.9722094927 | Z5: 1 | AA5: 0.2827793408 | AB5: 0.2827793408
B6: 1 | D6: 2 | E6: 0 | F6: 0 | G6: 226.03 | J6: 2 | K6: DEMOLIÇÕES | P6: ∑ | Q6: 226.03 | Y6: 0 | AB6: 0.2827793408
B7: 2 | D7: 2 | E7: 1 | F7: 0 | J7: 2.1 | K7: Demolição de Mureta de Concreto | L7: M3 | M7: 0.46 | N7: 272.43 | O7: 0.2034 | P7: 327.84 | Q7: 150.81 | R7: 97627 | S7: SINAPI-C | W7: 60 | X7: 0.0008161390869 | Y7: 0.9819051017 | Z7: 2 | AA7: 0.1265372216 | AB7: 0.4093165624
B8: 2 | D8: 2 | E8: 2 | F8: 0 | J8: 2.2 | K8: Remoção de Cerca sobre Viga de Concreto | L8: M | M8: 15.32 | N8: 4.08 | O8: 0.2034 | P8: 4.91 | Q8: 75.22 | R8: CRD004 | S8: COMPOSIÇÃO | W8: 66 | X8: 0.0004070683782 | Y8: 0.9854251987 | Z8: 3 | AA8: 0.1163386489 | AB8: 0.5256552112
B9: 1 | D9: 3 | E9: 0 | F9: 0 | G9: 5926.65 | J9: 3 | K9: INFRAESTRUTURA AMPLIAÇÃO QUADRA | P9: ∑ | Q9: 5926.65 | Y9: 0 | AB9: 0.5256552112
B10: 2 | D10: 3 | E10: 1 | F10: 0 | J10: 3.1 | K10: Escavação | Y10: 0 | AB10: 0.5256552112
B11: 3 | D11: 3 | E11: 1 | F11: 1 | J11: 3.1.1 | K11: Escavação Manual para Bloco/Sapata, com previsão de fôrma | L11: M3 | M11: 5.9178 | N11: 94.88 | O11: 0.2034 | P11: 114.18 | Q11: 675.95 | R11: 96523 | S11: SINAPI-C | W11: 33 | X11: 0.003658041348 | Y11: 0.9281002083 | Z11: 4 | AA11: 0.07485517739 | AB11: 0.6005103886
B12: 2 | D12: 3 | E12: 2 | F12: 0 | J12: 3.2 | K12: Fôrma | Y12: 0 | AB12: 0.6005103886
B13: 3 | D13: 3 | E13: 2 | F13: 1 | J13: 3.2.1 | K13: Fôrma de Madeira para Concreto, (material e mão-de-obra para fabricação, montagem e desforma) | L13: M2 | M13: 2.84 | N13: 59.59 | O13: 0.2034 | P13: 71.71 | Q13: 203.66 | R13: CED007 | S13: COMPOSIÇÃO | W13: 55 | X13: 0.001102147646 | Y13: 0.9771068143 | Z13: 5 | AA13: 0.03705848342 | AB13: 0.6375688721
B14: 2 | D14: 3 | E14: 3 | F14: 0 | J14: 3.3 | K14: Armadura | Y14: 0 | AB14: 0.6375688721
B15: 3 | D15: 3 | E15: 3 | F15: 1 | J15: 3.3.1 | K15: Armadura CA-50 - 8.0mm (fornecimento, corte, dobra e colocação) | L15: KG | M15: 94.6 | N15: 17.7 | O15: 0.2034 | P15: 21.3 | Q15: 2014.98 | R15: 96545 | S15: SINAPI-C | W15: 13 | X15: 0.01090447541 | Y15: 0.7867017439 | Z15: 6 | AA15: 0.03245680324 | AB15: 0.6700256753
B16: 3 | D16: 3 | E16: 3 | F16: 2 | J16: 3.3.2 | K16: Armadura CA-50 - 10.0mm (fornecimento, corte, dobra e colocação) | L16: KG | M16: 13.4 | N16: 15.77 | O16: 0.2034 | P16: 18.98 | Q16: 254.33 | R16: 96546 | S16: SINAPI-C | W16: 50 | X16: 0.001376358689 | Y16: 0.970833134 | Z16: 7 | AA16: 0.0295555887 | AB16: 0.699581264
B17: 2 | D17: 3 | E17: 4 | F17: 0 | J17: 3.4 | K17: Concreto | Y17: 0 | AB17: 0.699581264
B18: 3 | D18: 3 | E18: 4 | F18: 1 | J18: 3.4.1 | K18: Concreto Feito no Local, Fck= 25MPa (fornecimento, lançamento e adensamento) | L18: M3 | M18: 2.9 | N18: 587.77 | O18: 0.2034 | P18: 707.32 | Q18: 2051.23 | R18: CED002 | S18: COMPOSIÇÃO | W18: 12 | X18: 0.01110064969 | Y18: 0.7756010942 | Z18: 8 | AA18: 0.02677873512 | AB18: 0.7263599991
B19: 2 | D19: 3 | E19: 5 | F19: 0 | J19: 3.5 | K19: Bloco de Concreto | Y19: 0 | AB19: 0.7263599991
B20: 3 | D20: 3 | E20: 5 | F20: 1 | J20: 3.5.1 | K20: Blocos de Concreto 14x19x39cm, 4MPa | L20: M2 | M20: 2.64 | N20: 84.14 | O20: 0.2034 | P20: 101.25 | Q20: 267.3 | R20: 87455 | S20: SINAPI-C | W20: 48 | X20: 0.001446548491 | Y20: 0.9679765119 | Z20: 10 | AA20: 0.01642830997 | AB20: 0.759216619
B21: 2 | D21: 3 | E21: 6 | F21: 0 | J21: 3.6 | K21: Impermeabilização | Y21: 0 | AB21: 0.7427883091
B22: 3 | D22: 3 | E22: 6 | F22: 1 | J22: 3.6.1 | K22: Impermeabilização das Vigas Baldrames com Manta Asfáltica e=3mm, incluindo Emulsão Asfáltica | L22: M2 | M22: 3.96 | N22: 96.36 | O22: 0.2034 | P22: 115.96 | Q22: 459.2 | R22: 98546 | S22: SINAPI-C | W22: 42 | X22: 0.002485054497 | Y22: 0.9553810954 | Z22: 10 | AA22: 0.01642830997 | AB22: 0.759216619
B23: 1 | D23: 4 | E23: 0 | F23: 0 | G23: 4347.44 | J23: 4 | K23: SUPRAESTRUTURA AMPLIAÇÃO QUADRA | P23: ∑ | Q23: 4347.44 | Y23: 0 | AB23: 0.759216619
B24: 2 | D24: 4 | E24: 1 | F24: 0 | J24: 4.1 | K24: Fôrma | Y24: 0 | AB24: 0.759216619
B25: 3 | D25: 4 | E25: 1 | F25: 1 | J25: 4.1.1 | K25: Fôrma de Madeira Serrada para Concreto, (material e mão-de-obra para fabricação, montagem e desforma) | L25: M2 | M25: 16.56 | N25: 94.53 | O25: 0.2034 | P25: 113.76 | Q25: 1883.87 | R25: CED008 | S25: COMPOSIÇÃO | W25: 14 | X25: 0.0101949469 | Y25: 0.7976062193 | Z25: 11 | AA25: 0.01638447516 | AB25: 0.7756010942
B26: 2 | D26: 4 | E26: 2 | F26: 0 | J26: 4.2 | K26: Armadura | Y26: 0 | AB26: 0.7756010942
B27: 3 | D27: 4 | E27: 2 | F27: 1 | J27: 4.2.1 | K27: Armadura CA-50 - 6.3mm (fornecimento, corte, dobra e colocação) | L27: KG | M27: 1.2 | N27: 19.13 | O27: 0.2034 | P27: 23.02 | Q27: 27.62 | R27: 92776 | S27: SINAPI-C | W27: 73 | X27: 0.0001494712657 | Y27: 0.9875436643 | Z27: 12 | AA27: 0.01110064969 | AB27: 0.7867017439
B28: 3 | D28: 4 | E28: 2 | F28: 2 | J28: 4.2.2 | K28: Armadura CA-50 - 8.0mm (fornecimento, corte, dobra e colocação) | L28: KG | M28: 26.6 | N28: 17.7 | O28: 0.2034 | P28: 21.3 | Q28: 566.58 | R28: 92777 | S28: SINAPI-C | X28: 0.003066163277 | Z28: 13 | AA28: 0.01090447541 | AB28: 0.7976062193
B29: 3 | D29: 4 | E29: 2 | F29: 3 | J29: 4.2.3 | K29: Armadura CA-50 - 10.0mm (fornecimento, corte, dobra e colocação) | L29: KG | M29: 30.6 | N29: 15.69 | O29: 0.2034 | P29: 18.88 | Q29: 577.73 | R29: 92778 | S29: SINAPI-C | W29: 35 | X29: 0.003126503777 | Y29: 0.9347321975 | Z29: 14 | AA29: 0.0101949469 | AB29: 0.8078011662
B30: 3 | D30: 4 | E30: 2 | F30: 4 | J30: 4.2.4 | K30: Armadura CA-60 - 5.0mm (fornecimento, corte, dobra e colocação) | L30: KG | M30: 23 | N30: 20.6 | O30: 0.2034 | P30: 24.79 | Q30: 570.17 | R30: 92775 | S30: SINAPI-C | X30: 0.003085591295 | Z30: 15 | AA30: 0.009879228083 | AB30: 0.8176803943
B31: 2 | D31: 4 | E31: 3 | F31: 0 | J31: 4.3 | K31: Concreto | Y31: 0 | AB31: 0.8176803943
B32: 3 | D32: 4 | E32: 3 | F32: 1 | J32: 4.3.1 | K32: Concreto Feito no Local, Fck= 25MPa (fornecimento, lançamento e adensamento) | L32: M3 | M32: 1.02 | N32: 587.77 | O32: 0.2034 | P32: 707.32 | Q32: 721.47 | R32: CED002 | S32: COMPOSIÇÃO | W32: 32 | X32: 0.003904382117 | Y32: 0.9241958262 | Z32: 16 | AA32: 0.009569949197 | AB32: 0.8272503435
B33: 1 | D33: 5 | E33: 0 | F33: 0 | G33: 910.91 | J33: 5 | K33: PISO AMPLIAÇÃO QUADRA | P33: ∑ | Q33: 910.91 | Y33: 0 | AB33: 0.8272503435
B34: 2 | D34: 5 | E34: 1 | F34: 0 | J34: 5.1 | K34: Lastro de Brita Graduada, e=10cm | L34: M3 | M34: 0.788025 | N34: 125.71 | O34: 0.2034 | P34: 151.28 | Q34: 119.51 | R34: 100324 | S34: SINAPI-C | W34: 61 | X34: 0.0006467527503 | Y34: 0.9827212407 | Z34: 17 | AA34: 0.009542998911 | AB34: 0.8367933424
B35: 2 | D35: 5 | E35: 2 | F35: 0 | J35: 5.2 | K35: Tela Soldada Q-92 (fornecimento, corte e colocação com espaçador) | L35: M2 | M35: 7.88025 | N35: 24.53 | O35: 0.2034 | P35: 29.52 | Q35: 232.62 | R35: CED061 | S35: COMPOSIÇÃO | W35: 52 | X35: 0.001258870595 | Y35: 0.9735224262 | Z35: 18 | AA35: 0.009535530759 | AB35: 0.8463288732
B36: 2 | D36: 5 | E36: 3 | F36: 0 | J36: 5.3 | K36: Piso de Concreto Feito no Local, e= 10cm, Fck= 25MPa (fornecimento, lançamento, adensamento, bombeamento e sarrafeamento) | L36: M3 | M36: 0.788025 | N36: 587.77 | O36: 0.2034 | P36: 707.32 | Q36: 558.78 | R36: CED002 | S36: COMPOSIÇÃO | W36: 39 | X36: 0.003023951986 | Y36: 0.9467805448 | Z36: 40 | AA36: 0.00297394784 | AB36: 0.9527784446
B37: 1 | D37: 6 | E37: 0 | F37: 0 | G37: 2836.42 | J37: 6 | K37: ESTRUTURA ESCADA E RAMPA | P37: ∑ | Q37: 2836.42 | Y37: 0 | AB37: 0.849302821
B38: 2 | D38: 6 | E38: 1 | F38: 0 | J38: 6.1 | K38: Escavação | Y38: 0 | AB38: 0.849302821
B39: 3 | D39: 6 | E39: 1 | F39: 1 | J39: 6.1.1 | K39: Perfuração Manual de Estaca Broca Ø20cm | L39: M | M39: 6 | N39: 26.88 | O39: 0.2034 | P39: 32.35 | Q39: 194.1 | R39: CED100 | S39: COMPOSIÇÃO | W39: 56 | X39: 0.001050411755 | Y39: 0.9782089619 | Z39: 20 | AA39: 0.008343440593 | AB39: 0.8576462616
B40: 2 | D40: 6 | E40: 2 | F40: 0 | J40: 6.2 | K40: Fôrma | Y40: 0 | AB40: 0.8576462616
B41: 3 | D41: 6 | E41: 2 | F41: 1 | J41: 6.2.1 | K41: Fôrma de Madeira para Concreto, (material e mão-de-obra para fabricação, montagem e desforma) | L41: M2 | M41: 13.6 | N41: 59.59 | O41: 0.2034 | P41: 71.71 | Q41: 975.26 | R41: CED007 | S41: COMPOSIÇÃO | W41: 27 | X41: 0.005277818486 | Y41: 0.899396043 | Z41: 21 | AA41: 0.007734623888 | AB41: 0.8653808855
B42: 2 | D42: 6 | E42: 3 | F42: 0 | J42: 6.3 | K42: Armadura | Y42: 0 | AB42: 0.8653808855
B43: 3 | D43: 6 | E43: 3 | F43: 1 | J43: 6.3.1 | K43: Armadura CA-50 - 8.0mm (fornecimento, corte, dobra e colocação) | L43: KG | M43: 25.8 | N43: 17.7 | O43: 0.2034 | P43: 21.3 | Q43: 549.54 | R43: 96545 | S43: SINAPI-C | W43: 40 | X43: 0.00297394784 | Y43: 0.9498044968 | Z43: 22 | AA43: 0.007539640191 | AB43: 0.8729205257
B44: 3 | D44: 6 | E44: 3 | F44: 2 | J44: 6.3.2 | K44: Armadura CA-60 - 5.0mm (fornecimento, corte, dobra e colocação) | L44: KG | M44: 19.4 | N44: 20.6 | O44: 0.2034 | P44: 24.79 | Q44: 480.93 | R44: 92775 | S44: SINAPI-C | W44: 41 | X44: 0.002602650826 | Y44: 0.9527784446 | Z44: 23 | AA44: 0.007094744002 | AB44: 0.8800152697
B45: 2 | D45: 6 | E45: 4 | F45: 0 | J45: 6.4 | K45: Concreto | Y45: 0 | AB45: 0.8800152697
B46: 3 | D46: 6 | E46: 4 | F46: 1 | J46: 6.4.1 | K46: Concreto Feito no Local, Fck= 25MPa (fornecimento, lançamento e adensamento) | L46: M3 | M46: 0.9 | N46: 587.77 | O46: 0.2034 | P46: 707.32 | Q46: 636.59 | R46: CED002 | S46: COMPOSIÇÃO | X46: 0.003445036677 | Z46: 24 | AA46: 0.006755267807 | AB46: 0.8867705375
B47: 1 | D47: 7 | E47: 0 | F47: 0 | G47: 1841.66 | J47: 7 | K47: PISO ESCADA E RAMPA | P47: ∑ | Q47: 1841.66 | Y47: 0 | AB47: 0.8867705375
B48: 2 | D48: 7 | E48: 1 | F48: 0 | J48: 7.1 | K48: Regularização e Apiloamento Manual | L48: M2 | M48: 14.23 | N48: 3.4 | O48: 0.2034 | P48: 4.09 | Q48: 58.2 | R48: CED060 | S48: COMPOSIÇÃO | W48: 68 | X48: 0.0003149611754 | Y48: 0.9862011288 | Z48: 25 | AA48: 0.006692383806 | AB48: 0.8934629213
B49: 2 | D49: 7 | E49: 2 | F49: 0 | J49: 7.2 | K49: Lastro de Brita Graduada, e=10cm | L49: M3 | M49: 1.423 | N49: 125.71 | O49: 0.2034 | P49: 151.28 | Q49: 214.82 | R49: 100324 | S49: SINAPI-C | W49: 54 | X49: 0.001162542263 | Y49: 0.975944272 | Z49: 26 | AA49: 0.005933121728 | AB49: 0.899396043
B50: 2 | D50: 7 | E50: 3 | F50: 0 | J50: 7.3 | K50: Lona 200 Micras (fornecimento e instalação) | L50: M2 | M50: 14.23 | N50: 3.05 | O50: 0.2034 | P50: 3.67 | Q50: 52.22 | R50: 97087 | S50: SINAPI-C | W50: 70 | X50: 0.0002825991852 | Y50: 0.9868304017 | Z50: 27 | AA50: 0.005277818486 | AB50: 0.9046738615
B51: 2 | D51: 7 | E51: 4 | F51: 0 | J51: 7.4 | K51: Tela Soldada Q-92 (fornecimento, corte e colocação com espaçador) | L51: M2 | M51: 14.23 | N51: 24.53 | O51: 0.2034 | P51: 29.52 | Q51: 420.07 | R51: CED061 | S51: COMPOSIÇÃO | W51: 44 | X51: 0.002273294518 | Y51: 0.9602585561 | Z51: 28 | AA51: 0.005243291814 | AB51: 0.9099171533
B52: 2 | D52: 7 | E52: 5 | F52: 0 | J52: 7.5 | K52: Piso de Concreto Feito no Local, e= 10cm, Fck= 25MPa (fornecimento, lançamento, adensamento, bombeamento e sarrafeamento) | L52: M3 | M52: 1.55425 | N52: 587.77 | O52: 0.2034 | P52: 707.32 | Q52: 1096.35 | R52: CED002 | S52: COMPOSIÇÃO | W52: 26 | X52: 0.005933121728 | Y52: 0.8934629213 | Z52: 29 | AA52: 0.004847588014 | AB52: 0.9147647413
B53: 1 | D53: 8 | E53: 0 | F53: 0 | G53: 13832.09 | J53: 8 | K53: FECHAMENTOS | P53: ∑ | Q53: 13832.09 | Y53: 0 | AB53: 0.9147647413
B54: 2 | D54: 8 | E54: 1 | F54: 0 | J54: 8.1 | K54: Alvenaria de Vedação de Tijolos Cerâmicos Furados Tijolo 11,5x19x24cm, 09 Furos, Assentamento Cutelo (fornecimento e assentamento, incluso argamassa) | L54: M2 | M54: 142.13 | N54: 80.87 | O54: 0.2034 | P54: 97.32 | Q54: 13832.09 | R54: CED033 | S54: COMPOSIÇÃO | W54: 4 | X54: 0.07485517739 | Y54: 0.5256552112 | Z54: 30 | AA54: 0.004719709448 | AB54: 0.9194844508
B55: 1 | D55: 9 | E55: 0 | F55: 0 | G55: 9591.12 | J55: 9 | K55: REVESTIMENTO ARGAMASSADO | P55: ∑ | Q55: 9591.12 | Y55: 0 | AB55: 0.9194844508
B56: 2 | D56: 9 | E56: 1 | F56: 0 | J56: 9.1 | K56: Paredes | Y56: 0 | AB56: 0.9194844508
B57: 3 | D57: 9 | E57: 1 | F57: 1 | J57: 9.1.1 | K57: Impermeabliização com Argamassa Polimérica Semi-Flexível Bicomponente, 3 Demãos Cruzadas | L57: M2 | M57: 57.04 | N57: 25.29 | O57: 0.2034 | P57: 30.43 | Q57: 1735.73 | R57: 98555 | S57: SINAPI-C | X57: 0.00939325706 | Z57: 31 | AA57: 0.004711375424 | AB57: 0.9241958262
B58: 3 | D58: 9 | E58: 1 | F58: 2 | J58: 9.1.2 | K58: Chapisco aplicado com Colher de Pedreiro, Argamassa Traço 1:3 | L58: M2 | M58: 326.64 | N58: 3.92 | O58: 0.2034 | P58: 4.72 | Q58: 1541.74 | R58: 87879 | S58: SINAPI-C | W58: 20 | X58: 0.008343440593 | Y58: 0.849302821 | Z58: 32 | AA58: 0.003904382117 | AB58: 0.9281002083
B59: 3 | D59: 9 | E59: 1 | F59: 3 | J59: 9.1.3 | K59: Massa Única, Argamassa Traço 1:2:8 | L59: M2 | M59: 152.26 | N59: 32.73 | O59: 0.2034 | P59: 39.39 | Q59: 5997.52 | R59: 87529 | S59: SINAPI-C | W59: 6 | X59: 0.03245680324 | Y59: 0.6375688721 | Z59: 33 | AA59: 0.003658041348 | AB59: 0.9317582497
B60: 2 | D60: 9 | E60: 2 | F60: 0 | J60: 9.2 | K60: Podotátil | Y60: 0 | AB60: 0.9317582497
B61: 3 | D61: 9 | E61: 2 | F61: 1 | J61: 9.2.1 | K61: Podotátil Direcional ou Alerta de Concreto, 20x20cm, Argamassado, e=6cm (fornecimento e assentamento) | L61: M2 | M61: 3.25 | N61: 80.83 | O61: 0.2034 | P61: 97.27 | Q61: 316.13 | R61: CED203 | S61: COMPOSIÇÃO | X61: 0.001710801999 | Z61: 40 | AA61: 0.00297394784 | AB61: 0.9527784446
B62: 1 | D62: 10 | E62: 0 | F62: 0 | G62: 6333.55 | J62: 10 | K62: PINTURA | P62: ∑ | Q62: 6333.55 | Y62: 0 | AB62: 0.9347321975
B63: 2 | D63: 10 | E63: 1 | F63: 0 | J63: 10.1 | K63: Fundo Preparador para Pintura Acrílica, 01 demão | L63: M2 | M63: 326.64 | N63: 2.22 | O63: 0.2034 | P63: 2.67 | Q63: 872.13 | R63: 88485 | S63: SINAPI-C | W63: 30 | X63: 0.004719709448 | Y63: 0.9147647413 | Z63: 35 | AA63: 0.003126503777 | AB63: 0.9378587013
B64: 2 | D64: 10 | E64: 2 | F64: 0 | J64: 10.2 | K64: Pintura Acrílica, 02 demãos | L64: M2 | M64: 326.64 | N64: 13.89 | O64: 0.2034 | P64: 16.72 | Q64: 5461.42 | R64: 88489 | S64: SINAPI-C | W64: 7 | X64: 0.0295555887 | Y64: 0.6700256753 | Z64: 40 | AA64: 0.00297394784 | AB64: 0.9527784446
B65: 1 | D65: 11 | E65: 0 | F65: 0 | G65: 75635.43 | J65: 11 | K65: ESTRUTURA METÁLICA E TELHAMENTO | P65: ∑ | Q65: 75635.43 | Y65: 0 | AB65: 0.9408326491
B66: 2 | D66: 11 | E66: 1 | F66: 0 | J66: 11.1 | K66: Estrutura Metálica para suporte do Fechamento Metálico e Telha em Galvalume, e=0,43mm, Trapezoidal 25cm (TP25), com pintura eletrostatica a pó na cor verde, em ambas as faces (projeto, fornecimento e instalação) | L66: m2 | M66: 228.28 | N66: 200 | O66: 0.1445 | P66: 228.9 | Q66: 52253.29 | R66: MET009 | S66: MERCADO | W66: 1 | X66: 0.2827793408 | Y66: 0 | Z66: 40 | AA66: 0.00297394784 | AB66: 0.9527784446
B67: 2 | D67: 11 | E67: 2 | F67: 0 | J67: 11.2 | K67: Passarela Metálica, composta por Perfis de Ø3" de Aço Galvanizado, com pintura Eletrostática a Pó e Telha em Galvalume, e=0,43mm, Trapezoidal 40cm (TP40), com pintura eletrostática a pó na cor branca, em ambas as faces (projeto, fornecimento e instalação) | L67: m2 | M67: 20.43 | N67: 1000 | O67: 0.1445 | P67: 1144.5 | Q67: 23382.14 | R67: MET001 | S67: MERCADO | W67: 2 | X67: 0.1265372216 | Y67: 0.2827793408 | Z67: 40 | AA67: 0.00297394784 | AB67: 0.9527784446
B68: 1 | D68: 12 | E68: 0 | F68: 0 | G68: 1595.64 | J68: 12 | K68: CALHAS E RUFOS | P68: ∑ | Q68: 1595.64 | Y68: 0 | AB68: 0.9467805448
B69: 2 | D69: 12 | E69: 1 | F69: 0 | J69: 12.1 | K69: Calha Moldura em Chapa em Aço Galvanizado, em Chapa 24 (e=0,65mm) | L69: M | M69: 13.62 | N69: 76.16 | O69: 0.2034 | P69: 91.65 | Q69: 1248.27 | R69: 94227 | S69: SINAPI-C | W69: 24 | X69: 0.006755267807 | Y69: 0.8800152697 | Z69: 39 | AA69: 0.003023951986 | AB69: 0.9498044968
B70: 2 | D70: 12 | E70: 2 | F70: 0 | J70: 12.2 | K70: Rufo Interno em Chapa em Aço Galvanizado, em Chapa 24 (e=0,65mm) | L70: M | M70: 4.79 | N70: 60.26 | O70: 0.2034 | P70: 72.52 | Q70: 347.37 | R70: 94231 | S70: SINAPI-C | W70: 46 | X70: 0.001879863634 | Y70: 0.9646865747 | Z70: 40 | AA70: 0.00297394784 | AB70: 0.9527784446
B71: 1 | D71: 13 | E71: 0 | F71: 0 | G71: 5288.19 | J71: 13 | K71: PORTAS | P71: ∑ | Q71: 5288.19 | Y71: 0 | AB71: 0.9527784446
B72: 2 | D72: 13 | E72: 1 | F72: 0 | J72: 13.1 | K72: P1 - 2,70x2,10 (01 unidades) 1 Fl. de Correr - Aço Galvanizado com Chapa Raiada | L72: M2 | M72: 5.67 | N72: 565.56 | O72: 0.2034 | P72: 680.59 | Q72: 3858.95 | R72: 100701 | S72: SINAPI-C | X72: 0.02088349532 | Z72: 41 | AA72: 0.002602650826 | AB72: 0.9553810954
B73: 2 | D73: 13 | E73: 2 | F73: 0 | J73: 13.2 | K73: P2 - 1,00x2,10 (01 unidades) 1 Fl. de Correr - Aço Galvanizado com Chapa Raiada | L73: M2 | M73: 2.1 | N73: 565.56 | O73: 0.2034 | P73: 680.59 | Q73: 1429.24 | R73: 100701 | S73: SINAPI-C | W73: 21 | X73: 0.007734623888 | Y73: 0.8576462616 | Z73: 42 | AA73: 0.002485054497 | AB73: 0.9578661499
B74: 1 | D74: 14 | E74: 0 | F74: 0 | G74: 7743.6 | J74: 14 | K74: CERCAMENTO | P74: ∑ | Q74: 7743.6 | Y74: 0 | AB74: 0.9578661499
B75: 2 | D75: 14 | E75: 1 | F75: 0 | J75: 14.1 | K75: Alambrado com Tela em Aço com Proteção em Zincagem e Cobertura em Poliester Malha 5x10cm e Ø4.3mm, Postes em Aço com Proteção em Zincagem e Cobertura em Poliester, Ø38mm. H=2,03m | L75: M2 | M75: 4.49 | N75: 174.31 | O75: 0.1445 | P75: 199.5 | Q75: 895.76 | R75: MET010 | S75: MERCADO | W75: 29 | X75: 0.004847588014 | Y75: 0.9099171533 | Z75: 43 | AA75: 0.002392406124 | AB75: 0.9602585561
B76: 2 | D76: 14 | E76: 2 | F76: 0 | J76: 14.2 | K76: Tela em Aço com Proteção em Zincagem e Cobertura em Poliester Malha 5x10cm e Ø2.5mm. H=1,00m | L76: M2 | M76: 35.32 | N76: 161.11 | O76: 0.2034 | P76: 193.88 | Q76: 6847.84 | R76: CED501 | S76: COMPOSIÇÃO | W76: 5 | X76: 0.03705848342 | Y76: 0.6005103886 | Z76: 44 | AA76: 0.002273294518 | AB76: 0.9625318506
B77: 1 | D77: 15 | E77: 0 | F77: 0 | G77: 16381.92 | J77: 15 | K77: INSTALAÇÕES ELÉTRICAS | P77: ∑ | Q77: 16381.92 | Y77: 0 | AB77: 0.9625318506
B78: 2 | D78: 15 | E78: 1 | F78: 0 | J78: 15.1 | K78: Infraestrutura do Ramal de Carga e Aterramento | Y78: 0 | AB78: 0.9625318506
B79: 3 | D79: 15 | E79: 1 | F79: 1 | J79: 15.1.1 | K79: Eletroduto PEAD 1.1/4" (fornecimento, escavação, assentamento e reaterro) | L79: M | M79: 16 | N79: 22.96 | O79: 0.2034 | P79: 27.63 | Q79: 442.08 | R79: 91873 | S79: SINAPI-C | W79: 43 | X79: 0.002392406124 | Y79: 0.9578661499 | Z79: 45 | AA79: 0.002154724082 | AB79: 0.9646865747
B80: 2 | D80: 15 | E80: 2 | F80: 0 | J80: 15.2 | K80: Fiação do Ramal de Carga e Aterramento | Y80: 0 | AB80: 0.9646865747
B81: 3 | D81: 15 | E81: 2 | F81: 1 | J81: 15.2.1 | K81: Cabo de Cobre Isolado 10mm2 - 1KV | L81: M | M81: 100 | N81: 10.89 | O81: 0.2034 | P81: 13.11 | Q81: 1311 | R81: 92980 | S81: SINAPI-C | W81: 23 | X81: 0.007094744002 | Y81: 0.8729205257 | Z81: 46 | AA81: 0.001879863634 | AB81: 0.9665664383
B82: 3 | D82: 15 | E82: 2 | F82: 2 | J82: 15.2.2 | K82: Haste de Aterramento em Aço de 2,4m e Ø5/8" | L82: UN | M82: 1 | N82: 83.66 | O82: 0.2034 | P82: 100.68 | Q82: 100.68 | R82: 96985 | S82: SINAPI-C | X82: 0.0005448503631 | Z82: 49 | AA82: 0.001410073606 | AB82: 0.970833134
B83: 3 | D83: 15 | E83: 2 | F83: 3 | J83: 15.2.3 | K83: Caixa de Passagem Pré-Moldada, 30x30x40cm, Fundo de Brita e Tampa de Concreto (fornecimento e instalação) | L83: UN | M83: 1 | N83: 98.19 | O83: 0.2034 | P83: 118.16 | Q83: 118.16 | R83: 97881 | S83: SINAPI-C | W83: 62 | X83: 0.0006394469498 | Y83: 0.9833679935 | Z83: 48 | AA83: 0.001446548491 | AB83: 0.9694230604
B84: 3 | D84: 15 | E84: 2 | F84: 4 | J84: 15.2.4 | K84: Eletroduto PVC Rigido 1" (fornecimento, escavação, assentamento e reaterro) | L84: M | M84: 3 | N84: 18.88 | O84: 0.2034 | P84: 22.72 | Q84: 68.16 | R84: 91872 | S84: SINAPI-C | W84: 67 | X84: 0.0003688617476 | Y84: 0.985832267 | Z84: 49 | AA84: 0.001410073606 | AB84: 0.970833134
B85: 2 | D85: 15 | E85: 3 | F85: 0 | J85: 15.3 | K85: Quadro de Distribuição | Y85: 0 | AB85: 0.970833134
B86: 3 | D86: 15 | E86: 3 | F86: 1 | J86: 15.3.1 | K86: Quadro de Distribuição de Energia para 18 Disjuntores, em Chapa de Aço Galvanizado, com Barramento Trifasico e Neutro (fornecimento e instalação) | L86: UN | M86: 1 | N86: 723.44 | O86: 0.2034 | P86: 870.59 | Q86: 870.59 | R86: 101883 | S86: SINAPI-C | W86: 31 | X86: 0.004711375424 | Y86: 0.9194844508 | Z86: 50 | AA86: 0.001376358689 | AB86: 0.9722094927
B87: 2 | D87: 15 | E87: 4 | F87: 0 | J87: 15.4 | K87: Disjuntores | Y87: 0 | AB87: 0.9722094927
B88: 3 | D88: 15 | E88: 4 | F88: 1 | J88: 15.4.1 | K88: Disjuntor Monopolar 10A (fornecimento e instalação) | L88: UN | M88: 6 | N88: 11.96 | O88: 0.2034 | P88: 14.39 | Q88: 86.34 | R88: 93653 | S88: SINAPI-C | W88: 65 | X88: 0.0004672465271 | Y88: 0.9849579521 | Z88: 51 | AA88: 0.001312933518 | AB88: 0.9735224262
B89: 3 | D89: 15 | E89: 4 | F89: 2 | J89: 15.4.2 | K89: Disjuntor Monopolar 16A (fornecimento e instalação) | L89: UN | M89: 2 | N89: 12.69 | O89: 0.2034 | P89: 15.27 | Q89: 30.54 | R89: 93654 | S89: SINAPI-C | X89: 0.0001652734415 | Z89: 52 | AA89: 0.001258870595 | AB89: 0.9747812968
B90: 3 | D90: 15 | E90: 4 | F90: 3 | J90: 15.4.3 | K90: Disjuntor Tripolar 32A (fornecimento e instalação) | L90: UN | M90: 1 | N90: 83.45 | O90: 0.2034 | P90: 100.42 | Q90: 100.42 | R90: 93671 | S90: SINAPI-C | W90: 64 | X90: 0.0005434433201 | Y90: 0.9844145088 | Z90: 53 | AA90: 0.001162975199 | AB90: 0.975944272
B91: 3 | D91: 15 | E91: 4 | F91: 4 | J91: 15.4.4 | K91: Disjuntor DR 25A (fornecimento e instalação) | L91: UN | M91: 1 | N91: 147.99 | O91: 0.2034 | P91: 178.09 | Q91: 178.09 | R91: CEL013 | S91: COMPOSIÇÃO | W91: 58 | X91: 0.0009637703732 | Y91: 0.9801003525 | Z91: 54 | AA91: 0.001162542263 | AB91: 0.9771068143
B92: 2 | D92: 15 | E92: 5 | F92: 0 | J92: 15.5 | K92: Infraestrutura dos Pontos | Y92: 0 | AB92: 0.9771068143
B93: 3 | D93: 15 | E93: 5 | F93: 1 | J93: 15.5.1 | K93: Infraestrutura dos Pontos (Eletrodutos Corrigados 3/4", Caixas Octogonais e Caixas 4"x2") | L93: UN | M93: 13 | N93: 112.63 | O93: 0.2034 | P93: 135.54 | Q93: 1762.02 | R93: CEL200 | S93: COMPOSIÇÃO | W93: 18 | X93: 0.009535530759 | Y93: 0.8367933424 | Z93: 55 | AA93: 0.001102147646 | AB93: 0.9782089619
B94: 2 | D94: 15 | E94: 6 | F94: 0 | J94: 15.6 | K94: Fiação dos Pontos, Interruptores e Tomadas | Y94: 0 | AB94: 0.9782089619
B95: 3 | D95: 15 | E95: 6 | F95: 1 | J95: 15.6.1 | K95: Ponto de Tomada de Uso Geral (Fiação 2,5mm² e Tomada 10A 2P+T com Placa) | L95: UN | M95: 13 | N95: 89.06 | O95: 0.2034 | P95: 107.17 | Q95: 1393.21 | R95: CEL202 | S95: COMPOSIÇÃO | W95: 22 | X95: 0.007539640191 | Y95: 0.8653808855 | Z95: 56 | AA95: 0.001050411755 | AB95: 0.9792593737
B96: 3 | D96: 15 | E96: 6 | F96: 2 | J96: 15.6.2 | K96: Cabo de cobre flexivel #1,5mm2 (Ligação entre as luminárias ) | L96: M | M96: 264 | N96: 3.05 | O96: 0.2034 | P96: 3.67 | Q96: 968.88 | R96: 91924 | S96: SINAPI-C | W96: 28 | X96: 0.005243291814 | Y96: 0.9046738615 | Z96: 59 | AA96: 0.0008409788084 | AB96: 0.9819051017
B97: 3 | D97: 15 | E97: 6 | F97: 3 | J97: 15.6.3 | K97: Eletroduto PVC Rigido 1 1/2" | L97: M | M97: 5 | N97: 32.23 | O97: 0.2034 | P97: 38.79 | Q97: 193.95 | R97: CEL006 | S97: COMPOSIÇÃO | X97: 0.001049599999 | Z97: 58 | AA97: 0.0009637703732 | AB97: 0.9810641228
B98: 2 | D98: 15 | E98: 7 | F98: 0 | J98: 15.7 | K98: Luminárias | Y98: 0 | AB98: 0.9810641228
B99: 3 | D99: 15 | E99: 7 | F99: 1 | J99: 15.7.1 | K99: Refletor LED 150W (fornecimento e instalação) | L99: UN | M99: 18 | N99: 139.77 | O99: 0.2034 | P99: 168.2 | Q99: 3027.6 | R99: CEL302 | S99: COMPOSIÇÃO | W99: 11 | X99: 0.01638447516 | Y99: 0.759216619 | Z99: 59 | AA99: 0.0008409788084 | AB99: 0.9819051017
B100: 2 | D100: 15 | E100: 8 | F100: 0 | J100: 15.8 | K100: Infraestrutura | Y100: 0 | AB100: 0.9819051017
B101: 3 | D101: 15 | E101: 8 | F101: 1 | J101: 15.8.1 | K101: Eletrocalha Perfurada tipo U 50mm Chapa 20, incluso Tampa de Pressão Superior e Tala de Emenda (fornecimento e instalação) | L101: M | M101: 70 | N101: 58.74 | O101: 0.2034 | P101: 70.69 | Q101: 4948.3 | R101: CEL103 | S101: COMPOSIÇÃO | W101: 8 | X101: 0.02677873512 | Y101: 0.699581264 | Z101: 60 | AA101: 0.0008161390869 | AB101: 0.9827212407
B102: 3 | D102: 15 | E102: 8 | F102: 2 | J102: 15.8.2 | K102: Fixação de Eletrocalha com Ganchos, superior e inferior (fornecimento e instalação) | L102: M | M102: 70 | N102: 2.55 | O102: 0.2034 | P102: 3.07 | Q102: 214.9 | R102: 91170 | S102: SINAPI-C | W102: 53 | X102: 0.001162975199 | Y102: 0.9747812968 | Z102: 61 | AA102: 0.0006467527503 | AB102: 0.9833679935
B103: 3 | D103: 15 | E103: 8 | F103: 3 | J103: 15.8.3 | K103: Barra Roscada (tirante) para Eletrocalha | L103: UN | M103: 70 | N103: 6.73 | O103: 0.2034 | P103: 8.1 | Q103: 567 | R103: CEL104 | S103: COMPOSIÇÃO | X103: 0.003068436193 | Z103: 62 | AA103: 0.0006394469498 | AB103: 0.9840074404
B104: 1 | D104: 16 | E104: 0 | F104: 0 | G104: 21497.6 | J104: 16 | K104: EXAUSTOR | P104: ∑ | Q104: 21497.6 | Y104: 0 | AB104: 0.9840074404
B105: 2 | D105: 16 | E105: 1 | F105: 0 | J105: 16.1 | K105: Exaustor axial, vazão de 44.500 m³/h, potência: 1,5 cv | L105: UN | M105: 4 | N105: 4466.01 | O105: 0.2034 | P105: 5374.4 | Q105: 21497.6 | R105: CED500 | S105: COMPOSIÇÃO | W105: 3 | X105: 0.1163386489 | Y105: 0.4093165624 | Z105: 66 | AA105: 0.0004070683782 | AB105: 0.985832267
B106: 1 | D106: 17 | E106: 0 | F106: 0 | G106: 6097.88 | J106: 17 | K106: SERRALHERIA | P106: ∑ | Q106: 6097.88 | Y106: 0 | AB106: 0.9844145088
B107: 2 | D107: 17 | E107: 1 | F107: 0 | J107: 17.1 | K107: Corrimão Duplo em Tubo de Aço Galvanizado 1.1/2" fixado em Postes Verticais de h=0,80m | L107: M | M107: 12.4 | N107: 122.34 | O107: 0.2034 | P107: 147.22 | Q107: 1825.53 | R107: 99855 | S107: SINAPI-C | W107: 15 | X107: 0.009879228083 | Y107: 0.8078011662 | Z107: 64 | AA107: 0.0005434433201 | AB107: 0.9849579521
B108: 2 | D108: 17 | E108: 2 | F108: 0 | J108: 17.2 | K108: Corrimão Duplo em Tubo de Aço Galvanizado 1.1/2" fixado no guarda-corpo | L108: M | M108: 8.4 | N108: 122.34 | O108: 0.2034 | P108: 147.22 | Q108: 1236.65 | R108: 99855 | S108: SINAPI-C | W108: 25 | X108: 0.006692383806 | Y108: 0.8867705375 | Z108: 65 | AA108: 0.0004672465271 | AB108: 0.9854251987
B109: 2 | D109: 17 | E109: 3 | F109: 0 | J109: 17.3 | K109: Guarda-Corpo de Aço Galvanizado de 1,30m - Postes Verticais Tubulares de 1.1/2" à Cada 2,00m; - Travessas Tubulares de 1/2" à Cada 10cm; - Pintado no Local com 01 Demão de Fundo Preparador e 02 Demãos de Pintura Acrilica | L109: M | M109: 3 | N109: 840.87 | O109: 0.2034 | P109: 1011.9 | Q109: 3035.7 | R109: CED120 | S109: COMPOSIÇÃO | W109: 10 | X109: 0.01642830997 | Y109: 0.7427883091 | Z109: 66 | AA109: 0.0004070683782 | AB109: 0.985832267
B110: 1 | D110: 18 | E110: 0 | F110: 0 | G110: 2236.3 | J110: 18 | K110: ACESSÓRIOS DE ACESSIBILIDADE | P110: ∑ | Q110: 2236.3 | Y110: 0 | AB110: 0.985832267
B111: 2 | D111: 18 | E111: 1 | F111: 0 | J111: 18.1 | K111: Placas de Sinalização para Vagas Preferênciais em Chapas de Aço Adesivadas, Fixadas em Tubos de Aço Galvanizado (fornecimento e instalação) | L111: UN | M111: 2 | N111: 734.74 | O111: 0.2034 | P111: 884.19 | Q111: 1768.38 | R111: COM003 | S111: COMPOSIÇÃO | W111: 16 | X111: 0.009569949197 | Y111: 0.8176803943 | Z111: 67 | AA111: 0.0003688617476 | AB111: 0.9862011288
B112: 2 | D112: 18 | E112: 2 | F112: 0 | J112: 18.2 | K112: Pintura da Sinalização Horizontal das Vagas Preferênciais | L112: M2 | M112: 7.5 | N112: 17.22 | O112: 0.2034 | P112: 20.72 | Q112: 155.4 | R112: 102491 | S112: SINAPI-C | W112: 59 | X112: 0.0008409788084 | Y112: 0.9810641228 | Z112: 68 | AA112: 0.0003149611754 | AB112: 0.98651609
B113: 2 | D113: 18 | E113: 3 | F113: 0 | J113: 18.3 | K113: Sinalização Visual para Degraus 20x3cm em PVC, Antiderrapante, Cor Amarela (fornecimento e instalação) | L113: UN | M113: 12 | N113: 3.6 | O113: 0.2034 | P113: 4.33 | Q113: 51.96 | R113: COM004 | S113: COMPOSIÇÃO | W113: 71 | X113: 0.0002811921421 | Y113: 0.9871130009 | Z113: 69 | AA113: 0.0003143117709 | AB113: 0.9868304017
B114: 2 | D114: 18 | E114: 4 | F114: 0 | J114: 18.4 | K114: Módulo de Referência em Vinil Autoadesivo, 80x120cm, Fixado no Piso (fornecimento e instalação) | L114: UN | M114: 2 | N114: 108.26 | O114: 0.2034 | P114: 130.28 | Q114: 260.56 | R114: CAC014 | S114: COMPOSIÇÃO | W114: 49 | X114: 0.001410073606 | Y114: 0.9694230604 | Z114: 70 | AA114: 0.0002825991852 | AB114: 0.9871130009
B115: 1 | D115: 19 | E115: 0 | F115: 0 | G115: 2219.64 | J115: 19 | K115: ACESSÓRIOS DO PREVENTIVO CONTRA INCÊNDIO | P115: ∑ | Q115: 2219.64 | Y115: 0 | AB115: 0.9871130009
B116: 2 | D116: 19 | E116: 1 | F116: 0 | J116: 19.1 | K116: Iluminação e Sinalização de Emergência | Y116: 0 | AB116: 0.9871130009
B117: 3 | D117: 19 | E117: 1 | F117: 1 | J117: 19.1.1 | K117: Bloco Autônomo com Indicação de Saída | L117: UN | M117: 1 | N117: 48.26 | O117: 0.2034 | P117: 58.08 | Q117: 58.08 | R117: CPR001 | S117: COMPOSIÇÃO | W117: 69 | X117: 0.0003143117709 | Y117: 0.98651609 | Z117: 71 | AA117: 0.0002811921421 | AB117: 0.9873941931
B118: 3 | D118: 19 | E118: 1 | F118: 2 | J118: 19.1.2 | K118: Bloco Autônomo de Iluminação de 2 Faróis de 55W | L118: UN | M118: 4 | N118: 366.34 | O118: 0.2034 | P118: 440.85 | Q118: 1763.4 | R118: CPR005 | S118: COMPOSIÇÃO | W118: 17 | X118: 0.009542998911 | Y118: 0.8272503435 | Z118: 73 | AA118: 0.0001494712657 | AB118: 0.9876931356
B119: 2 | D119: 19 | E119: 2 | F119: 0 | J119: 19.2 | K119: Extintores | Y119: 0 | AB119: 0.9875436643
B120: 3 | D120: 19 | E120: 2 | F120: 1 | J120: 19.2.1 | K120: Extintor de Incêndio Portátil PQS 4kg | L120: UN | M120: 2 | N120: 165.43 | O120: 0.2034 | P120: 199.08 | Q120: 398.16 | R120: 101908 | S120: SINAPI-C | W120: 45 | X120: 0.002154724082 | Y120: 0.9625318506 | Z120: 73 | AA120: 0.0001494712657 | AB120: 0.9876931356
D121: 19 | E121: 0 | F121: 0 | G121: 2219.64
D122: 19 | E122: 0 | F122: 0 | G122: 2219.64 | P122: TOTAL: | Q122: 184784.68
D123: 19 | E123: 0 | F123: 0 | G123: 2219.64
J125: Rio do Sul, | K125: 2021-12-02

Sheet CRONOGRAMA
B4: TODOS OS VALORES ESTÃO NA UNIDADE MONETÁRIA REAL
B5: ITEM | C5: DESCRIÇÃO | D5: TOTAL | E5: % | F5: 1 | G5: % | H5: 2 | I5: % | J5: 3 | K5: % | L5: 4 | M5: %
F6: =F5*30 -> 30 | H6: =H5*30 -> 60 | J6: =J5*30 -> 90 | L6: =L5*30 -> 120
B8: 1 | C8: =VLOOKUP(B8&""&"",ORÇAMENTO!J:Q,2,FALSE) -> CANTEIRO DE OBRA | D8: =SUMIFS(ORÇAMENTO!Q:Q,ORÇAMENTO!D:D,B8,ORÇAMENTO!E:E,">0") -> 242.61 | E8: =D8/$D$28 -> 0.001312933518 | F8: =$D8*G8 -> 242.61 | G8: 1 | H8: =$D8*I8 -> 0 | I8: 0 | J8: =$D8*K8 -> 0 | K8: 0 | L8: =$D8*M8 -> 0 | M8: 0
B9: 2 | C9: =VLOOKUP(B9&""&"",ORÇAMENTO!J:Q,2,FALSE) -> DEMOLIÇÕES | D9: =SUMIFS(ORÇAMENTO!Q:Q,ORÇAMENTO!D:D,B9,ORÇAMENTO!E:E,">0") -> 226.03 | E9: 0.001223207465 | F9: =$D9*G9 -> 226.03 | G9: 1 | H9: 0 | I9: 0 | J9: =$D9*K9 -> 0 | K9: 0 | L9: =$D9*M9 -> 0 | M9: 0
B10: 3 | C10: =VLOOKUP(B10&""&"",ORÇAMENTO!J:Q,2,FALSE) -> INFRAESTRUTURA AMPLIAÇÃO QUADRA | D10: =SUMIFS(ORÇAMENTO!Q:Q,ORÇAMENTO!D:D,B10,ORÇAMENTO!E:E,">0") -> 5926.65 | E10: 0.03207327577 | F10: 5926.65 | G10: 1 | H10: 0 | I10: 0 | J10: =$D10*K10 -> 0 | K10: 0 | L10: =$D10*M10 -> 0 | M10: 0
B11: 4 | C11: =VLOOKUP(B11&""&"",ORÇAMENTO!J:Q,2,FALSE) -> SUPRAESTRUTURA AMPLIAÇÃO QUADRA | D11: =SUMIFS(ORÇAMENTO!Q:Q,ORÇAMENTO!D:D,B11,ORÇAMENTO!E:E,">0") -> 4347.44 | E11: 0.02352705863 | F11: 4347.44 | G11: 1 | H11: 0 | I11: 0 | J11: =$D11*K11 -> 0 | K11: 0 | L11: =$D11*M11 -> 0 | M11: 0
B12: 5 | C12: =VLOOKUP(B12&""&"",ORÇAMENTO!J:Q,2,FALSE) -> PISO AMPLIAÇÃO QUADRA | D12: =SUMIFS(ORÇAMENTO!Q:Q,ORÇAMENTO!D:D,B12,ORÇAMENTO!E:E,">0") -> 910.91 | E12: 0.004929575331 | F12: 910.91 | G12: 1 | H12: 0 | I12: 0 | J12: =$D12*K12 -> 0 | K12: 0 | L12: =$D12*M12 -> 0 | M12: 0
B13: 6 | C13: =VLOOKUP(B13&""&"",ORÇAMENTO!J:Q,2,FALSE) -> ESTRUTURA ESCADA E RAMPA | D13: =SUMIFS(ORÇAMENTO!Q:Q,ORÇAMENTO!D:D,B13,ORÇAMENTO!E:E,">0") -> 2836.42 | E13: 0.01534986558 | F13: 2836.42 | G13: 1 | H13: 0 | I13: 0 | J13: =$D13*K13 -> 0 | K13: 0 | L13: =$D13*M13 -> 0 | M13: 0
B14: 7 | C14: =VLOOKUP(B14&""&"",ORÇAMENTO!J:Q,2,FALSE) -> PISO ESCADA E RAMPA | D14: =SUMIFS(ORÇAMENTO!Q:Q,ORÇAMENTO!D:D,B14,ORÇAMENTO!E:E,">0") -> 1841.66 | E14: 0.009966518869 | F14: 1841.66 | G14: 1 | H14: 0 | I14: 0 | J14: =$D14*K14 -> 0 | K14: 0 | L14: =$D14*M14 -> 0 | M14: 0
B15: 8 | C15: =VLOOKUP(B15&""&"",ORÇAMENTO!J:Q,2,FALSE) -> FECHAMENTOS | D15: =SUMIFS(ORÇAMENTO!Q:Q,ORÇAMENTO!D:D,B15,ORÇAMENTO!E:E,">0") -> 13832.09 | E15: 0.07485517739 | F15: 6916.045 | G15: 0.5 | H15: 6916.045 | I15: 0.5 | J15: =$D15*K15 -> 0 | K15: 0 | L15: =$D15*M15 -> 0 | M15: 0
B16: 9 | C16: =VLOOKUP(B16&""&"",ORÇAMENTO!J:Q,2,FALSE) -> REVESTIMENTO ARGAMASSADO | D16: =SUMIFS(ORÇAMENTO!Q:Q,ORÇAMENTO!D:D,B16,ORÇAMENTO!E:E,">0") -> 9591.12 | E16: 0.05190430289 | F16: 0 | G16: 0 | H16: 9591.12 | I16: 1 | J16: =$D16*K16 -> 0 | K16: 0 | L16: =$D16*M16 -> 0 | M16: 0
B17: 10 | C17: =VLOOKUP(B17&""&"",ORÇAMENTO!J:Q,2,FALSE) -> PINTURA | D17: =SUMIFS(ORÇAMENTO!Q:Q,ORÇAMENTO!D:D,B17,ORÇAMENTO!E:E,">0") -> 6333.55 | E17: 0.03427529815 | F17: 0 | G17: 0 | H17: 0 | I17: 0 | J17: =$D17*K17 -> 6333.55 | K17: 1 | L17: =$D17*M17 -> 0 | M17: 0
B18: 11 | C18: =VLOOKUP(B18&""&"",ORÇAMENTO!J:Q,2,FALSE) -> ESTRUTURA METÁLICA E TELHAMENTO | D18: =SUMIFS(ORÇAMENTO!Q:Q,ORÇAMENTO!D:D,B18,ORÇAMENTO!E:E,">0") -> 75635.43 | E18: 0.4093165624 | F18: 0 | G18: 0 | H18: 0 | I18: 0 | J18: =$D18*K18 -> 37817.715 | K18: 0.5 | L18: =$D18*M18 -> 37817.715 | M18: 0.5
B19: 12 | C19: =VLOOKUP(B19&""&"",ORÇAMENTO!J:Q,2,FALSE) -> CALHAS E RUFOS | D19: =SUMIFS(ORÇAMENTO!Q:Q,ORÇAMENTO!D:D,B19,ORÇAMENTO!E:E,">0") -> 1595.64 | E19: 0.008635131441 | F19: 0 | G19: 0 | H19: 0 | I19: 0 | J19: =$D19*K19 -> 1595.64 | K19: 1 | L19: =$D19*M19 -> 0 | M19: 0
B20: 13 | C20: =VLOOKUP(B20&""&"",ORÇAMENTO!J:Q,2,FALSE) -> PORTAS | D20: =SUMIFS(ORÇAMENTO!Q:Q,ORÇAMENTO!D:D,B20,ORÇAMENTO!E:E,">0") -> 5288.19 | E20: 0.02861811921 | F20: 0 | G20: 0 | H20: 0 | I20: 0 | J20: =$D20*K20 -> 5288.19 | K20: 1 | L20: =$D20*M20 -> 0 | M20: 0
B21: 14 | C21: =VLOOKUP(B21&""&"",ORÇAMENTO!J:Q,2,FALSE) -> CERCAMENTO | D21: =SUMIFS(ORÇAMENTO!Q:Q,ORÇAMENTO!D:D,B21,ORÇAMENTO!E:E,">0") -> 7743.6 | E21: 0.04190607143 | F21: 0 | G21: 0 | H21: 7743.6 | I21: 1 | J21: =$D21*K21 -> 0 | K21: 0 | L21: =$D21*M21 -> 0 | M21: 0
B22: 15 | C22: =VLOOKUP(B22&""&"",ORÇAMENTO!J:Q,2,FALSE) -> INSTALAÇÕES ELÉTRICAS | D22: =SUMIFS(ORÇAMENTO!Q:Q,ORÇAMENTO!D:D,B22,ORÇAMENTO!E:E,">0") -> 16381.92 | E22: 0.08865410271 | F22: 8190.96 | G22: 0.5 | H22: 8190.96 | I22: 0.5 | J22: =$D22*K22 -> 0 | K22: 0 | L22: =$D22*M22 -> 0 | M22: 0
B23: 16 | C23: =VLOOKUP(B23&""&"",ORÇAMENTO!J:Q,2,FALSE) -> EXAUSTOR | D23: =SUMIFS(ORÇAMENTO!Q:Q,ORÇAMENTO!D:D,B23,ORÇAMENTO!E:E,">0") -> 21497.6 | E23: 0.1163386489 | F23: 0 | G23: 0 | H23: 21497.6 | I23: 1 | J23: =$D23*K23 -> 0 | K23: 0 | L23: =$D23*M23 -> 0 | M23: 0
B24: 17 | C24: =VLOOKUP(B24&""&"",ORÇAMENTO!J:Q,2,FALSE) -> SERRALHERIA | D24: =SUMIFS(ORÇAMENTO!Q:Q,ORÇAMENTO!D:D,B24,ORÇAMENTO!E:E,">0") -> 6097.88 | E24: 0.03299992185 | F24: 0 | G24: 0 | H24: 6097.88 | I24: 1 | J24: =$D24*K24 -> 0 | K24: 0 | L24: =$D24*M24 -> 0 | M24: 0
B25: 18 | C25: =VLOOKUP(B25&""&"",ORÇAMENTO!J:Q,2,FALSE) -> ACESSÓRIOS DE ACESSIBILIDADE | D25: =SUMIFS(ORÇAMENTO!Q:Q,ORÇAMENTO!D:D,B25,ORÇAMENTO!E:E,">0") -> 2236.3 | E25: 0.01210219375 | F25: 0 | G25: 0 | H25: 2236.3 | I25: 1 | J25: =$D25*K25 -> 0 | K25: 0 | L25: =$D25*M25 -> 0 | M25: 0
B26: 19 | C26: =VLOOKUP(B26&""&"",ORÇAMENTO!J:Q,2,FALSE) -> ACESSÓRIOS DO PREVENTIVO CONTRA INCÊNDIO | D26: =SUMIFS(ORÇAMENTO!Q:Q,ORÇAMENTO!D:D,B26,ORÇAMENTO!E:E,">0") -> 2219.64 | E26: 0.01201203476 | F26: 0 | G26: 0 | H26: 2219.64 | I26: 1 | J26: =$D26*K26 -> 0 | K26: 0 | L26: =$D26*M26 -> 0 | M26: 0
C28: SUBTOTAL | D28: =SUM(D7:D27) -> 184784.68 | E28: =SUM(E8:E27) -> 1 | F28: =SUM(F8:F27) -> 31438.725 | G28: =F28/$D$28 -> 0.1701370752 | H28: =SUM(H8:H27) -> 64493.145 | I28: =H28/$D$28 -> 0.3490178136 | J28: =SUM(J8:J27) -> 51035.095 | K28: =J28/$D$28 -> 0.27618683 | L28: =SUM(L8:L27) -> 37817.715 | M28: =L28/$D$28 -> 0.2046582812
C29: TOTAL ACUMULADO | F29: =D29+F28 -> 31438.725 | G29: 0.1701370752 | H29: 95931.87 | I29: 0.5191548888 | J29: 146966.965 | K29: 0.7953417188 | L29: =J29+L28 -> 184784.68 | M29: 1
C33: VALOR DO Planilha1 | D33: =ORÇAMENTO!Q122 -> 184784.68 | E33: =D33/D28 -> 1 | F33: ESPERADO | H33: ESPERADO | J33: ESPERADO | L33: ESPERADO
F34: =G34*$D$33 -> 46196.17 | G34: =1/MAX($F$5:$AR$5) -> 0.25 | H34: =I34*$D$33 -> 46196.17 | I34: =1/MAX($F$5:$AR$5) -> 0.25 | J34: =K34*$D$33 -> 46196.17 | K34: =1/MAX($F$5:$AR$5) -> 0.25 | L34: =M34*$D$33 -> 46196.17 | M34: =1/MAX($F$5:$AR$5) -> 0.25
C36: ADMINISTRAÇÃO LOCAL | D36: =SUM(D9:D26) -> 184542.07 | F36: =SUM(F9:F26) -> 31196.115 | G36: =F36/$D$36 -> 0.169046088 | H36: =SUM(H9:H26) -> 64493.145 | I36: =H36/$D$36 -> 0.3494766532 | J36: =SUM(J9:J26) -> 51035.095 | K36: =J36/$D$36 -> 0.2765499217 | L36: =SUM(L9:L26) -> 37817.715 | M36: =L36/$D$36 -> 0.2049273372
